[Event "Early-Titled-Tuesday-Blitz-June-18-2024"]
[Site "Chess.com"]
[Date "2024.06.18"]
[Round "4"]
[White "GP9isback23"]
[Black "CristhianPortalR"]
[Result "0-1"]
[WhiteElo "2677"]
[BlackElo "2507"]
[TimeControl "180+1"]
[EndTime "8:41:12 PDT"]
[Termination "CristhianPortalR won on time"]

1. d4 {[%clk 0:03:00.9]} 1... d5 {[%clk 0:02:57.9]} 2. Nf3 {[%clk 0:03:01.4]}
2... Nf6 {[%clk 0:02:57.5]} 3. c4 {[%clk 0:03:00.4]} 3... c6 {[%clk 0:02:57.3]}
4. e3 {[%clk 0:03:00.4]} 4... Bf5 {[%clk 0:02:45.6]} 5. Bd3 {[%clk 0:03:00.2]}
5... Bxd3 {[%clk 0:02:41.2]} 6. Qxd3 {[%clk 0:03:01.1]} 6... e6 {[%clk
0:02:41.7]} 7. O-O {[%clk 0:03:01]} 7... Nbd7 {[%clk 0:02:42.2]} 8. Nc3 {[%clk
0:03:01.5]} 8... Be7 {[%clk 0:02:38.4]} 9. e4 {[%clk 0:03:00.7]} 9... dxe4
{[%clk 0:02:35.6]} 10. Nxe4 {[%clk 0:03:01.6]} 10... c5 {[%clk 0:02:22.7]} 11.
Rd1 {[%clk 0:03:00.2]} 11... cxd4 {[%clk 0:02:21.1]} 12. Qxd4 {[%clk 0:02:55.9]}
12... O-O {[%clk 0:02:15.6]} 13. Ng3 {[%clk 0:02:55.4]} 13... Qc7 {[%clk
0:02:12]} 14. Bf4 {[%clk 0:02:51.9]} 14... Qc5 {[%clk 0:02:10.5]} 15. Qc3 {[%clk
0:02:39.9]} 15... Rac8 {[%clk 0:02:08.5]} 16. Rac1 {[%clk 0:02:39.4]} 16... Nb6
{[%clk 0:02:02.7]} 17. Be3 {[%clk 0:02:39]} 17... Qxc4 {[%clk 0:01:52]} 18. Qa5
{[%clk 0:01:56.6]} 18... Qa6 {[%clk 0:01:43.1]} 19. Qxa6 {[%clk 0:01:53.1]}
19... bxa6 {[%clk 0:01:44]} 20. Ne5 {[%clk 0:01:50.2]} 20... Nfd5 {[%clk
0:01:31.7]} 21. Nc6 {[%clk 0:01:48.5]} 21... Bf6 {[%clk 0:01:29.8]} 22. Nxa7
{[%clk 0:01:11.3]} 22... Rxc1 {[%clk 0:01:25]} 23. Bxc1 {[%clk 0:01:11.6]} 23...
Ra8 {[%clk 0:01:17]} 24. Nc6 {[%clk 0:01:08]} 24... Rc8 {[%clk 0:01:17.4]} 25.
Na5 {[%clk 0:01:03.4]} 25... Rc2 {[%clk 0:01:12.9]} 26. Ne4 {[%clk 0:00:17.8]}
26... Bxb2 {[%clk 0:01:07.6]} 27. Be3 {[%clk 0:00:18.4]} 27... Nc4 {[%clk
0:00:53.4]} 28. Nxc4 {[%clk 0:00:10.9]} 28... Rxc4 {[%clk 0:00:54.3]} 29. Nd2
{[%clk 0:00:10.6]} 29... Rc2 {[%clk 0:00:52.8]} 30. Ne4 {[%clk 0:00:09.1]} 30...
h6 {[%clk 0:00:43.2]} 31. h3 {[%clk 0:00:07.8]} 31... f5 {[%clk 0:00:36.6]} 32.
Nd2 {[%clk 0:00:03.3]} 32... Bc3 {[%clk 0:00:29.1]} 33. Nb3 {[%clk 0:00:02.7]}
33... Rxa2 {[%clk 0:00:27.7]} 34. Nc5 {[%clk 0:00:03.1]} 34... Kf7 {[%clk
0:00:24.1]} 35. Rb1 {[%clk 0:00:03.2]} 35... Rb2 {[%clk 0:00:21.4]} 36. Rxb2
{[%clk 0:00:02.6]} 36... Bxb2 {[%clk 0:00:21.5]} 37. Nxa6 {[%clk 0:00:03.5]}
37... Nxe3 {[%clk 0:00:19.9]} 38. fxe3 {[%clk 0:00:03.5]} 38... Ba3 {[%clk
0:00:20.4]} 0-1

[Event "Early-Titled-Tuesday-Blitz-June-18-2024"]
[Site "Chess.com"]
[Date "2024.06.18"]
[Round "4"]
[White "bangchess21"]
[Black "Polish_fighter3000"]
[Result "0-1"]
[WhiteElo "2768"]
[BlackElo "3074"]
[TimeControl "180+1"]
[EndTime "8:41:16 PDT"]
[Termination "Polish_fighter3000 won by resignation"]

1. e4 {[%clk 0:03:00.9]} 1... e5 {[%clk 0:02:59.5]} 2. Nf3 {[%clk 0:03:00.6]}
2... Nc6 {[%clk 0:02:59.9]} 3. Nc3 {[%clk 0:03:00.9]} 3... g6 {[%clk 0:02:58.9]}
4. d4 {[%clk 0:03:00]} 4... exd4 {[%clk 0:02:59.8]} 5. Nxd4 {[%clk 0:03:00]}
5... Bg7 {[%clk 0:03:00.4]} 6. Be3 {[%clk 0:02:59.9]} 6... Nf6 {[%clk
0:02:55.3]} 7. Nxc6 {[%clk 0:03:00.3]} 7... bxc6 {[%clk 0:02:54.5]} 8. e5 {[%clk
0:03:00.5]} 8... Ng8 {[%clk 0:02:54.3]} 9. f4 {[%clk 0:03:01.1]} 9... d6 {[%clk
0:02:46.9]} 10. Bc4 {[%clk 0:02:39.2]} 10... Nh6 {[%clk 0:02:45.3]} 11. Qf3
{[%clk 0:02:30.8]} 11... O-O {[%clk 0:02:43.1]} 12. h3 {[%clk 0:02:25.5]} 12...
Nf5 {[%clk 0:02:39.4]} 13. O-O-O {[%clk 0:02:23.1]} 13... Nxe3 {[%clk 0:02:33]}
14. Qxe3 {[%clk 0:02:23.1]} 14... a5 {[%clk 0:02:23.8]} 15. g4 {[%clk
0:02:14.1]} 15... a4 {[%clk 0:02:19.6]} 16. a3 {[%clk 0:02:12.5]} 16... Re8
{[%clk 0:02:16.5]} 17. Rhf1 {[%clk 0:02:11.1]} 17... Qe7 {[%clk 0:02:08.2]} 18.
Kb1 {[%clk 0:02:09.8]} 18... dxe5 {[%clk 0:02:00.7]} 19. f5 {[%clk 0:02:10.1]}
19... Kh8 {[%clk 0:01:04.7]} 20. Ne4 {[%clk 0:02:03.4]} 20... f6 {[%clk
0:00:58.1]} 21. h4 {[%clk 0:01:59.9]} 21... Rb8 {[%clk 0:00:56.3]} 22. Ka2
{[%clk 0:01:56.9]} 22... Rf8 {[%clk 0:00:25.5]} 23. Rd2 {[%clk 0:01:56.5]} 23...
Bd7 {[%clk 0:00:24.4]} 24. fxg6 {[%clk 0:01:01.8]} 24... Bxg4 {[%clk 0:00:22.3]}
25. h5 {[%clk 0:01:02.7]} 25... h6 {[%clk 0:00:18.8]} 26. Nc5 {[%clk 0:00:51]}
26... f5 {[%clk 0:00:11.7]} 27. Rd7 {[%clk 0:00:50]} 27... Qf6 {[%clk
0:00:10.8]} 28. Qg3 {[%clk 0:00:34.8]} 28... e4 {[%clk 0:00:05.4]} 29. c3 {[%clk
0:00:35.1]} 29... Bxh5 {[%clk 0:00:03.4]} 30. Ne6 {[%clk 0:00:35.5]} 30... Rg8
{[%clk 0:00:02.2]} 31. Qxc7 {[%clk 0:00:32.4]} 31... Rxb2+ {[%clk 0:00:01.1]}
32. Ka1 {[%clk 0:00:19.1]} 32... Qxc3 {[%clk 0:00:02]} 0-1

[Event "Early-Titled-Tuesday-Blitz-June-18-2024"]
[Site "Chess.com"]
[Date "2024.06.18"]
[Round "4"]
[White "Szachulec75"]
[Black "DontMessWithTheFish"]
[Result "1-0"]
[WhiteElo "2246"]
[BlackElo "2634"]
[TimeControl "180+1"]
[EndTime "8:41:16 PDT"]
[Termination "Szachulec75 won by checkmate"]

1. Nf3 {[%clk 0:03:00.9]} 1... g6 {[%clk 0:02:57.4]} 2. g3 {[%clk 0:03:00.8]}
2... Bg7 {[%clk 0:02:58.3]} 3. Bg2 {[%clk 0:03:00.9]} 3... d6 {[%clk 0:02:58.8]}
4. d3 {[%clk 0:03:01.6]} 4... c5 {[%clk 0:02:57.2]} 5. O-O {[%clk 0:03:02.1]}
5... Nc6 {[%clk 0:02:58.1]} 6. e4 {[%clk 0:03:01.1]} 6... Nf6 {[%clk 0:02:58.5]}
7. Nc3 {[%clk 0:03:01.2]} 7... O-O {[%clk 0:02:59.2]} 8. Bg5 {[%clk 0:03:01.1]}
8... h6 {[%clk 0:02:58.8]} 9. Be3 {[%clk 0:03:00.1]} 9... Rb8 {[%clk 0:02:58.1]}
10. h3 {[%clk 0:02:59.7]} 10... b5 {[%clk 0:02:57.9]} 11. Qd2 {[%clk 0:02:59.2]}
11... Kh7 {[%clk 0:02:56.9]} 12. Nd1 {[%clk 0:02:58.9]} 12... b4 {[%clk
0:02:56]} 13. Nh4 {[%clk 0:02:52.6]} 13... d5 {[%clk 0:02:50.5]} 14. exd5 {[%clk
0:02:41.8]} 14... Nxd5 {[%clk 0:02:50]} 15. Bxc5 {[%clk 0:02:41.6]} 15... Be6
{[%clk 0:02:37]} 16. Ne3 {[%clk 0:02:34.9]} 16... Bxb2 {[%clk 0:02:30.9]} 17.
Rab1 {[%clk 0:02:34.4]} 17... Bc3 {[%clk 0:02:28.8]} 18. Qe2 {[%clk 0:02:29]}
18... Rc8 {[%clk 0:02:25.7]} 19. Nxd5 {[%clk 0:02:10.9]} 19... Bxd5 {[%clk
0:02:26.6]} 20. Nf3 {[%clk 0:02:03.7]} 20... Bxa2 {[%clk 0:02:19.9]} 21. Ra1
{[%clk 0:01:56.4]} 21... Bxa1 {[%clk 0:02:15.9]} 22. Rxa1 {[%clk 0:01:55.8]}
22... Bd5 {[%clk 0:02:15.8]} 23. Be3 {[%clk 0:01:43.3]} 23... Qd6 {[%clk
0:02:08]} 24. Ra6 {[%clk 0:01:32.1]} 24... Qf6 {[%clk 0:01:38.5]} 25. d4 {[%clk
0:01:08.2]} 25... e6 {[%clk 0:01:21.2]} 26. Ne5 {[%clk 0:01:01.1]} 26... Nxe5
{[%clk 0:00:54.9]} 27. Bxd5 {[%clk 0:00:55.8]} 27... Nd7 {[%clk 0:00:53.1]} 28.
Be4 {[%clk 0:00:47.3]} 28... Nb6 {[%clk 0:00:42.7]} 29. Rxa7 {[%clk 0:00:41.7]}
29... Nd5 {[%clk 0:00:42.7]} 30. Rd7 {[%clk 0:00:23.1]} 30... Rfd8 {[%clk
0:00:21.8]} 31. Ra7 {[%clk 0:00:22.7]} 31... Nxe3 {[%clk 0:00:16.6]} 32. fxe3
{[%clk 0:00:22.7]} 32... Kg7 {[%clk 0:00:11.6]} 33. Kg2 {[%clk 0:00:21.9]} 33...
Rc3 {[%clk 0:00:09.4]} 34. Bd3 {[%clk 0:00:20.2]} 34... e5 {[%clk 0:00:08.4]}
35. dxe5 {[%clk 0:00:13.6]} 35... Qxe5 {[%clk 0:00:07.4]} 36. Qg4 {[%clk
0:00:14.5]} 36... Qc5 {[%clk 0:00:03.1]} 37. Qxg6+ {[%clk 0:00:13.7]} 37... Kf8
{[%clk 0:00:02.8]} 38. Qxf7# {[%clk 0:00:13.3]} 1-0

[Event "Early-Titled-Tuesday-Blitz-June-18-2024"]
[Site "Chess.com"]
[Date "2024.06.18"]
[Round "4"]
[White "GelmanAlexander"]
[Black "Chaubunagungamaug1"]
[Result "0-1"]
[WhiteElo "2644"]
[BlackElo "2488"]
[TimeControl "180+1"]
[EndTime "8:41:16 PDT"]
[Termination "Chaubunagungamaug1 won by resignation"]

1. c4 {[%clk 0:03:00.9]} 1... c6 {[%clk 0:02:56.3]} 2. Nf3 {[%clk 0:03:00.5]}
2... d5 {[%clk 0:02:56]} 3. b3 {[%clk 0:03:00.9]} 3... Nf6 {[%clk 0:02:54]} 4.
Bb2 {[%clk 0:03:01.4]} 4... Bf5 {[%clk 0:02:49.9]} 5. d3 {[%clk 0:03:01.4]} 5...
e6 {[%clk 0:02:49.2]} 6. Nbd2 {[%clk 0:03:01.8]} 6... Nbd7 {[%clk 0:02:48.5]} 7.
a3 {[%clk 0:03:00.9]} 7... h6 {[%clk 0:02:47.7]} 8. h3 {[%clk 0:03:00.8]} 8...
Bd6 {[%clk 0:02:47.7]} 9. g4 {[%clk 0:03:00.8]} 9... Bh7 {[%clk 0:02:47]} 10.
Rg1 {[%clk 0:03:01.4]} 10... e5 {[%clk 0:02:45]} 11. h4 {[%clk 0:02:59.5]} 11...
e4 {[%clk 0:02:44.5]} 12. g5 {[%clk 0:02:59.8]} 12... hxg5 {[%clk 0:02:23.4]}
13. hxg5 {[%clk 0:02:58.7]} 13... exf3 {[%clk 0:01:56.9]} 14. gxf6 {[%clk
0:02:58.6]} 14... Nxf6 {[%clk 0:01:51.8]} 15. Rxg7 {[%clk 0:02:51.7]} 15... Bg6
{[%clk 0:01:48.4]} 16. Nxf3 {[%clk 0:02:46.4]} 16... Kf8 {[%clk 0:01:48.2]} 17.
Rxg6 {[%clk 0:02:43]} 17... fxg6 {[%clk 0:01:49.1]} 18. Qd2 {[%clk 0:02:39.8]}
18... Qe7 {[%clk 0:01:35.2]} 19. Qg5 {[%clk 0:02:34.4]} 19... Kf7 {[%clk
0:01:26.1]} 20. O-O-O {[%clk 0:01:53.4]} 20... Rh5 {[%clk 0:01:22.9]} 21. Qd2
{[%clk 0:01:13.1]} 21... Bxa3 {[%clk 0:01:20.9]} 22. Ng5+ {[%clk 0:01:07.1]}
22... Kg7 {[%clk 0:01:02.6]} 23. f4 {[%clk 0:01:07.5]} 23... Re8 {[%clk
0:00:55.3]} 24. e4 {[%clk 0:01:00.8]} 24... d4 {[%clk 0:00:38.3]} 25. Bh3 {[%clk
0:00:48.2]} 25... Reh8 {[%clk 0:00:26.3]} 26. e5 {[%clk 0:00:36.8]} 26... Ne8
{[%clk 0:00:21.8]} 27. Qg2 {[%clk 0:00:29.6]} 27... a5 {[%clk 0:00:15.4]} 28.
Rg1 {[%clk 0:00:28.2]} 28... R8h6 {[%clk 0:00:14.5]} 29. Ne6+ {[%clk 0:00:18.3]}
29... Kh8 {[%clk 0:00:13.5]} 30. f5 {[%clk 0:00:18.7]} 30... Rxh3 {[%clk
0:00:08.5]} 31. Qg4 {[%clk 0:00:05.9]} 31... Bxb2+ {[%clk 0:00:07.5]} 32. Kxb2
{[%clk 0:00:06.2]} 32... Rh2+ {[%clk 0:00:07.8]} 33. Kb1 {[%clk 0:00:05]} 33...
Qa3 {[%clk 0:00:07.3]} 34. Rg2 {[%clk 0:00:05]} 34... Rh1+ {[%clk 0:00:06.6]}
35. Rg1 {[%clk 0:00:05.5]} 35... R6h2 {[%clk 0:00:06.4]} 36. Qxd4 {[%clk
0:00:01.5]} 36... Qa2+ {[%clk 0:00:06.2]} 0-1

[Event "Early-Titled-Tuesday-Blitz-June-18-2024"]
[Site "Chess.com"]
[Date "2024.06.18"]
[Round "4"]
[White "Kirill_Klukin"]
[Black "GeorgiosSouleidis"]
[Result "1-0"]
[WhiteElo "2880"]
[BlackElo "2697"]
[TimeControl "180+1"]
[EndTime "8:41:17 PDT"]
[Termination "Kirill_Klukin won by resignation"]

1. e4 {[%clk 0:02:54.4]} 1... c5 {[%clk 0:03:00]} 2. d4 {[%clk 0:02:54.2]} 2...
cxd4 {[%clk 0:03:00.1]} 3. Qxd4 {[%clk 0:02:55.1]} 3... Nc6 {[%clk 0:02:59.6]}
4. Qd3 {[%clk 0:02:55.4]} 4... Nf6 {[%clk 0:02:56.9]} 5. Nc3 {[%clk 0:02:54]}
5... e6 {[%clk 0:02:57.4]} 6. Nf3 {[%clk 0:02:52.9]} 6... d6 {[%clk 0:02:47.7]}
7. Be2 {[%clk 0:02:51.2]} 7... Be7 {[%clk 0:02:48.1]} 8. O-O {[%clk 0:02:51.1]}
8... O-O {[%clk 0:02:48.4]} 9. Bf4 {[%clk 0:02:51.7]} 9... h6 {[%clk 0:02:33.3]}
10. Rad1 {[%clk 0:02:50.6]} 10... e5 {[%clk 0:02:33.3]} 11. Be3 {[%clk
0:02:46.6]} 11... Be6 {[%clk 0:02:22]} 12. a3 {[%clk 0:02:41.6]} 12... a6 {[%clk
0:02:21.9]} 13. Nd2 {[%clk 0:02:36.5]} 13... Qc7 {[%clk 0:02:17.3]} 14. Nd5
{[%clk 0:02:17.9]} 14... Bxd5 {[%clk 0:02:10.4]} 15. exd5 {[%clk 0:02:17.5]}
15... Nb8 {[%clk 0:02:10.8]} 16. f4 {[%clk 0:02:09.4]} 16... exf4 {[%clk
0:02:04.3]} 17. Rxf4 {[%clk 0:02:00.7]} 17... Nfd7 {[%clk 0:02:02.8]} 18. Rdf1
{[%clk 0:01:54.7]} 18... Bf6 {[%clk 0:01:58.8]} 19. c3 {[%clk 0:01:43.4]} 19...
Bg5 {[%clk 0:01:55.9]} 20. R4f2 {[%clk 0:01:34.3]} 20... Ne5 {[%clk 0:01:55.6]}
21. Qd4 {[%clk 0:01:31.3]} 21... Bxe3 {[%clk 0:01:54.7]} 22. Qxe3 {[%clk
0:01:32.2]} 22... Nbd7 {[%clk 0:01:52.3]} 23. Ne4 {[%clk 0:01:26.8]} 23... Rae8
{[%clk 0:01:48]} 24. Qd4 {[%clk 0:01:25.9]} 24... Re7 {[%clk 0:01:29]} 25. Ng3
{[%clk 0:01:23.8]} 25... g6 {[%clk 0:01:07.8]} 26. Qh4 {[%clk 0:01:23]} 26...
Nb6 {[%clk 0:00:54.3]} 27. Qxh6 {[%clk 0:01:06.2]} 27... Nxd5 {[%clk 0:00:54.1]}
28. Ne4 {[%clk 0:01:04.4]} 28... Ng4 {[%clk 0:00:44.9]} 29. Bxg4 {[%clk
0:01:01.5]} 29... Rxe4 {[%clk 0:00:45.3]} 30. Rxf7 {[%clk 0:00:44.9]} 30... Qxf7
{[%clk 0:00:24.5]} 31. Rxf7 {[%clk 0:00:40.2]} 31... Kxf7 {[%clk 0:00:25.4]} 32.
Bf3 {[%clk 0:00:36.3]} 32... Re5 {[%clk 0:00:21.3]} 33. Qh7+ {[%clk 0:00:36.5]}
33... Kf6 {[%clk 0:00:18.5]} 34. Qxb7 {[%clk 0:00:34.1]} 34... Nf4 {[%clk
0:00:14]} 35. Qxa6 {[%clk 0:00:33.2]} 35... Re6 {[%clk 0:00:12.9]} 36. Qc4
{[%clk 0:00:31]} 36... g5 {[%clk 0:00:11.5]} 37. a4 {[%clk 0:00:31.3]} 37...
Rfe8 {[%clk 0:00:11.4]} 38. h3 {[%clk 0:00:29.8]} 38... Ng6 {[%clk 0:00:09.4]}
39. Qd4+ {[%clk 0:00:29]} 39... Ke7 {[%clk 0:00:07.8]} 40. a5 {[%clk 0:00:23.1]}
40... Nh4 {[%clk 0:00:04.1]} 41. Qg7+ {[%clk 0:00:21.7]} 41... Kd8 {[%clk
0:00:03.5]} 42. Qxg5+ {[%clk 0:00:22.4]} 1-0

[Event "Early-Titled-Tuesday-Blitz-June-18-2024"]
[Site "Chess.com"]
[Date "2024.06.18"]
[Round "4"]
[White "ab-lsv"]
[Black "Kislov_Oleg"]
[Result "0-1"]
[WhiteElo "2355"]
[BlackElo "2534"]
[TimeControl "180+1"]
[EndTime "8:41:17 PDT"]
[Termination "Kislov_Oleg won on time"]

1. d4 {[%clk 0:02:59.5]} 1... d5 {[%clk 0:02:57]} 2. c4 {[%clk 0:02:59.8]} 2...
e6 {[%clk 0:02:56.1]} 3. Nc3 {[%clk 0:03:00.1]} 3... Nf6 {[%clk 0:02:55.9]} 4.
Bg5 {[%clk 0:03:00.2]} 4... Be7 {[%clk 0:02:55.9]} 5. Nf3 {[%clk 0:03:00.2]}
5... O-O {[%clk 0:02:55.9]} 6. e3 {[%clk 0:03:00.5]} 6... Nbd7 {[%clk
0:02:54.1]} 7. Qc2 {[%clk 0:02:54.7]} 7... dxc4 {[%clk 0:02:53.2]} 8. Bxc4
{[%clk 0:02:54.7]} 8... a6 {[%clk 0:02:53.3]} 9. O-O {[%clk 0:02:53.8]} 9... b5
{[%clk 0:02:53.5]} 10. Bd3 {[%clk 0:02:37.8]} 10... c5 {[%clk 0:02:51.4]} 11.
Rfd1 {[%clk 0:02:13.4]} 11... Qb6 {[%clk 0:02:34.7]} 12. a4 {[%clk 0:01:56.6]}
12... b4 {[%clk 0:02:34]} 13. a5 {[%clk 0:01:52.8]} 13... Qa7 {[%clk 0:02:11.1]}
14. Ne4 {[%clk 0:01:44.4]} 14... h6 {[%clk 0:02:00.8]} 15. Bf4 {[%clk
0:01:26.7]} 15... Bb7 {[%clk 0:01:51]} 16. dxc5 {[%clk 0:00:58.4]} 16... Nxe4
{[%clk 0:01:28.7]} 17. Bxe4 {[%clk 0:00:57.8]} 17... Nxc5 {[%clk 0:01:29.3]} 18.
Bxb7 {[%clk 0:00:54.4]} 18... Qxb7 {[%clk 0:01:28.4]} 19. Bd6 {[%clk 0:00:26.7]}
19... Rac8 {[%clk 0:01:18.4]} 20. Bxe7 {[%clk 0:00:25.5]} 20... Qxe7 {[%clk
0:01:18]} 21. Qe2 {[%clk 0:00:25.2]} 21... Qb7 {[%clk 0:01:14]} 22. Rac1 {[%clk
0:00:21.4]} 22... Nb3 {[%clk 0:01:12.3]} 23. Rxc8 {[%clk 0:00:21.2]} 23... Rxc8
{[%clk 0:01:12.3]} 24. Ne5 {[%clk 0:00:18.4]} 24... Nxa5 {[%clk 0:01:06.9]} 25.
h4 {[%clk 0:00:17]} 25... Qb5 {[%clk 0:00:43.9]} 26. Qxb5 {[%clk 0:00:14.3]}
26... axb5 {[%clk 0:00:44.8]} 27. Rd7 {[%clk 0:00:11.4]} 27... f6 {[%clk
0:00:34.4]} 28. Ng6 {[%clk 0:00:10.8]} 28... Rc1+ {[%clk 0:00:29.2]} 29. Kh2
{[%clk 0:00:10.7]} 29... h5 {[%clk 0:00:25.9]} 30. Nf4 {[%clk 0:00:09.1]} 30...
Rc2 {[%clk 0:00:22.9]} 31. Kg3 {[%clk 0:00:08.7]} 31... Rxb2 {[%clk 0:00:22.9]}
32. Nxe6 {[%clk 0:00:08]} 32... b3 {[%clk 0:00:20.3]} 33. Rxg7+ {[%clk
0:00:06.1]} 33... Kh8 {[%clk 0:00:20.6]} 34. Kf4 {[%clk 0:00:04.8]} 34... Rxf2+
{[%clk 0:00:19.9]} 35. Ke4 {[%clk 0:00:04.3]} 35... b2 {[%clk 0:00:20.2]} 0-1

[Event "Early-Titled-Tuesday-Blitz-June-18-2024"]
[Site "Chess.com"]
[Date "2024.06.18"]
[Round "4"]
[White "Casper"]
[Black "eltenedor"]
[Result "1-0"]
[WhiteElo "2464"]
[BlackElo "2133"]
[TimeControl "180+1"]
[EndTime "8:41:17 PDT"]
[Termination "Casper won on time"]

1. e4 {[%clk 0:03:00.9]} 1... b6 {[%clk 0:02:57.3]} 2. d3 {[%clk 0:02:57.5]}
2... Bb7 {[%clk 0:02:56.6]} 3. g3 {[%clk 0:02:57.8]} 3... g6 {[%clk 0:02:55.6]}
4. Bg2 {[%clk 0:02:58]} 4... Bg7 {[%clk 0:02:56.2]} 5. c3 {[%clk 0:02:58.5]}
5... f5 {[%clk 0:02:46.9]} 6. f3 {[%clk 0:02:46.8]} 6... fxe4 {[%clk 0:02:37]}
7. fxe4 {[%clk 0:02:46.9]} 7... Nf6 {[%clk 0:02:36.9]} 8. Nf3 {[%clk 0:02:47.1]}
8... O-O {[%clk 0:02:36]} 9. O-O {[%clk 0:02:47.6]} 9... e6 {[%clk 0:02:10.8]}
10. Qe2 {[%clk 0:02:47.5]} 10... Nc6 {[%clk 0:02:09.9]} 11. a4 {[%clk
0:02:44.9]} 11... a5 {[%clk 0:02:06.9]} 12. Nbd2 {[%clk 0:02:42.7]} 12... Ba6
{[%clk 0:01:59.2]} 13. c4 {[%clk 0:02:29.9]} 13... e5 {[%clk 0:01:50.2]} 14. Nb1
{[%clk 0:02:19.6]} 14... d6 {[%clk 0:01:35]} 15. Bg5 {[%clk 0:02:19.3]} 15... h6
{[%clk 0:01:34]} 16. Bd2 {[%clk 0:02:18]} 16... Nb4 {[%clk 0:01:31.1]} 17. Nc3
{[%clk 0:02:15.8]} 17... c6 {[%clk 0:01:28.1]} 18. Bh3 {[%clk 0:02:11.6]} 18...
Bc8 {[%clk 0:01:23.4]} 19. Bxc8 {[%clk 0:01:52.6]} 19... Qxc8 {[%clk 0:01:23.3]}
20. Nh4 {[%clk 0:01:53.5]} 20... Kh7 {[%clk 0:01:19.5]} 21. Kg2 {[%clk
0:01:51.4]} 21... Nc2 {[%clk 0:01:18.4]} 22. Rad1 {[%clk 0:01:47.8]} 22... Nd4
{[%clk 0:01:18.9]} 23. Qe1 {[%clk 0:01:39.2]} 23... Nc2 {[%clk 0:00:59]} 24. Qe2
{[%clk 0:01:38.3]} 24... Nd4 {[%clk 0:00:58.8]} 25. Qe1 {[%clk 0:01:38.4]} 25...
Nc2 {[%clk 0:00:58.7]} 26. Qf2 {[%clk 0:01:39.1]} 26... Nxe4 {[%clk 0:00:45]}
27. Qxb6 {[%clk 0:01:19.8]} 27... Nxd2 {[%clk 0:00:23.8]} 28. Rxf8 {[%clk
0:01:10.2]} 28... Qxf8 {[%clk 0:00:23.4]} 29. Rxd2 {[%clk 0:01:10.6]} 29... Rb8
{[%clk 0:00:22.1]} 30. Qa7 {[%clk 0:01:07.8]} 30... Rxb2 {[%clk 0:00:11.8]} 31.
Qf2 {[%clk 0:00:49.4]} 31... Qxf2+ {[%clk 0:00:07.5]} 32. Kxf2 {[%clk
0:00:50.3]} 32... e4 {[%clk 0:00:05.6]} 33. Nxe4 {[%clk 0:00:41.2]} 33... Bd4+
{[%clk 0:00:05.4]} 34. Ke2 {[%clk 0:00:40.3]} 34... Nb4 {[%clk 0:00:01.8]} 35.
Rxb2 {[%clk 0:00:35.2]} 35... Bxb2 {[%clk 0:00:02.7]} 36. Nxd6 {[%clk
0:00:36.1]} 36... Nc2 {[%clk 0:00:01.9]} 37. Nf3 {[%clk 0:00:33.3]} 37... Nd4+
{[%clk 0:00:02.8]} 38. Nxd4 {[%clk 0:00:33.2]} 38... Bxd4 {[%clk 0:00:03.6]} 39.
Nb7 {[%clk 0:00:33]} 39... Bc3 {[%clk 0:00:03.3]} 40. d4 {[%clk 0:00:31.6]}
40... Kg7 {[%clk 0:00:02.8]} 41. Kd3 {[%clk 0:00:32]} 41... Bb4 {[%clk
0:00:02.2]} 42. Nd8 {[%clk 0:00:31.3]} 42... c5 {[%clk 0:00:01.8]} 43. Ne6+
{[%clk 0:00:31.3]} 43... Kf6 {[%clk 0:00:01.5]} 44. Nxc5 {[%clk 0:00:32.2]}
44... Bxc5 {[%clk 0:00:01]} 45. dxc5 {[%clk 0:00:32.1]} 45... Ke7 {[%clk
0:00:01.9]} 46. Ke4 {[%clk 0:00:30.7]} 46... Kd7 {[%clk 0:00:02.3]} 47. Kd5
{[%clk 0:00:30.9]} 1-0

[Event "Early-Titled-Tuesday-Blitz-June-18-2024"]
[Site "Chess.com"]
[Date "2024.06.18"]
[Round "4"]
[White "manitodeplomo"]
[Black "DominguezOnYoutube"]
[Result "0-1"]
[WhiteElo "2651"]
[BlackElo "2912"]
[TimeControl "180+1"]
[EndTime "8:41:19 PDT"]
[Termination "DominguezOnYoutube won on time"]

1. d4 {[%clk 0:03:00.4]} 1... Nf6 {[%clk 0:02:58.1]} 2. c4 {[%clk 0:03:00.5]}
2... e6 {[%clk 0:02:58.1]} 3. Nf3 {[%clk 0:03:00.2]} 3... d5 {[%clk 0:02:57.6]}
4. Nc3 {[%clk 0:02:59.4]} 4... Bb4 {[%clk 0:02:56.2]} 5. Qa4+ {[%clk 0:02:58.7]}
5... Nc6 {[%clk 0:02:55.7]} 6. e3 {[%clk 0:02:58.4]} 6... O-O {[%clk 0:02:54.1]}
7. Bd2 {[%clk 0:02:58]} 7... dxc4 {[%clk 0:02:49.2]} 8. Bxc4 {[%clk 0:02:54.6]}
8... Bd6 {[%clk 0:02:48.6]} 9. Nb5 {[%clk 0:02:54]} 9... Bd7 {[%clk 0:02:47.4]}
10. Qc2 {[%clk 0:02:34.2]} 10... e5 {[%clk 0:01:56]} 11. Nxd6 {[%clk 0:02:29.2]}
11... cxd6 {[%clk 0:01:56.9]} 12. dxe5 {[%clk 0:02:28]} 12... dxe5 {[%clk
0:01:49.8]} 13. Rd1 {[%clk 0:02:23.1]} 13... Qe7 {[%clk 0:01:36.9]} 14. Bc3
{[%clk 0:02:14.7]} 14... Rac8 {[%clk 0:01:34.8]} 15. O-O {[%clk 0:01:43.1]}
15... Bg4 {[%clk 0:01:33.8]} 16. h3 {[%clk 0:01:32.5]} 16... Bh5 {[%clk
0:01:29.8]} 17. Qf5 {[%clk 0:01:31]} 17... Rfe8 {[%clk 0:01:12.9]} 18. Rd2
{[%clk 0:01:08]} 18... Bg6 {[%clk 0:01:05.9]} 19. Qg5 {[%clk 0:01:06.8]} 19...
Ne4 {[%clk 0:01:05.9]} 20. Qxe7 {[%clk 0:01:06.2]} 20... Nxe7 {[%clk 0:00:50.1]}
21. Nxe5 {[%clk 0:00:50.7]} 21... Nxd2 {[%clk 0:00:49.4]} 22. Bxd2 {[%clk
0:00:50.9]} 22... Red8 {[%clk 0:00:49.6]} 23. Bc3 {[%clk 0:00:46.8]} 23... Nc6
{[%clk 0:00:39.5]} 24. Nxg6 {[%clk 0:00:43.6]} 24... hxg6 {[%clk 0:00:39.7]} 25.
g4 {[%clk 0:00:28.8]} 25... a6 {[%clk 0:00:34.2]} 26. a4 {[%clk 0:00:20.2]}
26... Ne7 {[%clk 0:00:28.3]} 27. Bb3 {[%clk 0:00:12.7]} 27... Nd5 {[%clk
0:00:28.3]} 28. Bd4 {[%clk 0:00:12.4]} 28... Nf4 {[%clk 0:00:24.4]} 29. Kh2
{[%clk 0:00:10.4]} 29... Ne6 {[%clk 0:00:20.5]} 30. Bc3 {[%clk 0:00:09.9]} 30...
Nc5 {[%clk 0:00:20.3]} 31. Bc2 {[%clk 0:00:09.6]} 31... b5 {[%clk 0:00:19.7]}
32. axb5 {[%clk 0:00:08.9]} 32... axb5 {[%clk 0:00:20.6]} 33. Kg2 {[%clk
0:00:07.7]} 33... Nd3 {[%clk 0:00:20]} 34. Bxd3 {[%clk 0:00:06.3]} 34... Rxd3
{[%clk 0:00:19.5]} 35. Ra1 {[%clk 0:00:06.1]} 35... Rd7 {[%clk 0:00:18.7]} 36.
Kf3 {[%clk 0:00:04.9]} 36... f6 {[%clk 0:00:17.5]} 37. Ke2 {[%clk 0:00:04.4]}
37... Kf7 {[%clk 0:00:16.5]} 38. Ra6 {[%clk 0:00:03.9]} 38... Rb7 {[%clk
0:00:16.4]} 39. Bd4 {[%clk 0:00:02.6]} 39... Rh8 {[%clk 0:00:16.1]} 40. g5
{[%clk 0:00:01.7]} 40... fxg5 {[%clk 0:00:16]} 0-1